[Event "Marshall CC Premier 04-2025"]
[Site "New York"]
[Date "2025.04.06"]
[Round "4.1"]
[White "Dong, Kyle Qiyu"]
[Black "Hoffman, Luc"]
[Result "1/2-1/2"]
[Annotator "RC"]
[ECO "A50"]
[WhiteElo "2006"]
[BlackElo "2211"]
[PlyCount "42"]
[EventDate "2025.01.03"]
[EventType "swiss"]
[EventCountry "USA"]
[SourceTitle "playchess.com"]
[Source "ChessBase"]
[SourceQuality "1"]
[TimeControl "5400+30"]

1. c4 {[%emt 0:00:05]} b6 {[%emt 0:00:05]} 2. d4 {[%emt 0:01:10]} Bb7 {[%emt 0:01:02]} 3. Nc3 {[%emt 0:00:02]} e6 {[%emt 0:00:12]} 4. a3 {[%emt 0:00:03]} Nf6 {[%emt 0:02:40]} 5. d5 {[%emt 0:02:16]} Bd6 {[%emt 0:07:09]} 6. Nf3 {[%emt 0:00:32]} exd5 {[%emt 0:01:41]} 7. cxd5 {[%emt 0:00:04]} O-O {[%emt 0:00:21]} 8. g3 {[%emt 0:02:45]} Na6 {[%emt 0:08:42]} 9. b4 {[%emt 0:01:01]} c5 {[%emt 0:04:22]} 10. dxc6 {[%emt 0:05:47]} dxc6 {[%emt 0:00:18]} 11. Bg2 {[%emt 0:00:18]} c5 {[%emt 0:00:38]} 12. b5 {[%emt 0:00:15]} Nc7 {[%emt 0:00:22]} 13. Qb3 {[%emt 0:04:41]} Nfd5 {[%emt 0:06:56]} 14. Bb2 {[%emt 0:03:05]} Qe7 {[%emt 0:13:34]} 15. O-O {[%emt 0:01:32]} Nxc3 {[%emt 0:02:18]} 16. Qxc3 {[%emt 0:02:31]} f6 {[%emt 0:00:01]} 17. Rfe1 {[%emt 0:04:14]} Kh8 {[%emt 0:08:13]} 18. a4 {[%emt 0:01:53]} Be4 {[%emt 0:00:43]} 19. Qc4 {[%emt 0:03:47]} Rad8 {[%emt 0:04:33]} 20. Rad1 {[%emt 0:08:51]} Qe6 {[%emt 0:00:19]} 21. Nd2 {[%emt 0:04:33]} Bf5 {[%emt 0:04:37]} 1/2-1/2

[Event "Marshall CC Premier 04-2025"]
[Site "New York"]
[Date "2025.04.06"]
[Round "4.2"]
[White "Muthukumar, Haari"]
[Black "Stancil, Kimani"]
[Result "1-0"]
[Annotator "RC"]
[ECO "B72"]
[WhiteElo "2197"]
[BlackElo "1919"]
[PlyCount "227"]
[EventDate "2025.01.03"]
[EventType "swiss"]
[EventCountry "USA"]
[SourceTitle "playchess.com"]
[Source "ChessBase"]
[SourceQuality "1"]
[TimeControl "5400+30"]

1. e4 {[%emt 0:00:02]} c5 {[%emt 0:09:57]} 2. Nf3 {[%emt 0:00:03]} d6 {[%emt 0:00:04]} 3. d4 {[%emt 0:00:04]} cxd4 {[%emt 0:00:01]} 4. Nxd4 {[%emt 0:00:02]} Nf6 {[%emt 0:00:07]} 5. Nc3 {[%emt 0:00:06]} g6 {[%emt 0:00:03]} 6. Be3 {[%emt 0:00:46]} a6 {[%emt 0:01:27]} 7. f3 {[%emt 0:02:20]} h5 {[%emt 0:00:08]} 8. Qd2 {[%emt 0:03:47]} Nbd7 {[%emt 0:00:44]} 9. Bc4 {[%emt 0:13:00]} Bg7 {[%emt 0:04:56]} 10. h3 {[%emt 0:07:14]} h4 {[%emt 0:03:51]} 11. a4 {[%emt 0:03:06]} Rh5 {[%emt 0:00:53]} 12. Be2 {[%emt 0:06:57]} Qc7 {[%emt 0:15:53]} 13. f4 {[%emt 0:02:47]} Rc5 {[%emt 0:00:03]} 14. Bf3 {[%emt 0:04:10]} Nb6 {[%emt 0:01:23]} 15. Nb3 {[%emt 0:07:24]} Nc4 {[%emt 0:01:14]} 16. Qf2 {[%emt 0:00:53]} Nxe3 {[%emt 0:00:29]} 17. Qxe3 {[%emt 0:00:06]} Rxc3 {[%emt 0:04:07]} 18. bxc3 {[%emt 0:06:56]} Nh5 {[%emt 0:04:28]} 19. O-O-O {[%emt 0:06:38]} Ng3 {[%emt 0:05:03]} 20. Rhg1 {[%emt 0:00:56]} Bd7 {[%emt 0:03:31]} 21. e5 {[%emt 0:03:31]} dxe5 {[%emt 0:03:02]} 22. fxe5 {[%emt 0:04:33]} Bxe5 {[%emt 0:03:10]} 23. Kb1 {[%emt 0:00:19]} Nf5 {[%emt 0:11:56]} 24. Qc5 {[%emt 0:02:51]} Rc8 {[%emt 0:00:13]} 25. Qxc7 {[%emt 0:00:46]} Rxc7 {[%emt 0:00:09]} 26. a5 {[%emt 0:00:09]} Bxc3 {[%emt 0:00:46]} 27. Rd5 {[%emt 0:01:39]} Be6 {[%emt 0:00:34]} 28. Rd3 {[%emt 0:02:43]} Nd6 {[%emt 0:01:31]} 29. Nd4 {[%emt 0:01:41]} Bd7 {[%emt 0:00:09]} 30. Bg4 {[%emt 0:03:48]} f5 {[%emt 0:01:34]} 31. Bf3 {[%emt 0:00:16]} Ne4 {[%emt 0:03:32]} 32. Nb3 {[%emt 0:02:24]} Be6 {[%emt 0:05:01]} 33. Rgd1 {[%emt 0:01:51]} Nd6 {[%emt 0:03:29]} 34. Re3 {[%emt 0:02:16]} Kf7 {[%emt 0:01:04]} 35. Nd4 {[%emt 0:02:43]} Bd7 {[%emt 0:07:50]} 36. Bd5+ {[%emt 0:01:10]} Kf6 {[%emt 0:00:25]} 37. Ne6 {[%emt 0:02:05]} Bxe6 {[%emt 0:00:42]} 38. Rxe6+ {[%emt 0:00:31]} Kg5 {[%emt 0:00:11]} 39. Rd3 {[%emt 0:01:19]} f4 {[%emt 0:02:19]} 40. Bf3 {[%emt 0:06:38]} Nf5 {[%emt 0:00:50]} 41. Rd5 {[%emt 0:00:00]} Bf6 {[%emt 0:00:11]} 42. Be2 {[%emt 0:00:00]} Kh6 {[%emt 0:00:33]} 43. Bd3 {[%emt 0:00:00]} Ne3 {[%emt 0:00:22]} 44. Rd8 {[%emt 0:00:00]} Kg7 {[%emt 0:00:39]} 45. Be4 {[%emt 0:00:00]} Rc4 {[%emt 0:00:07]} 46. Bf3 {[%emt 0:00:13]} Ra4 {[%emt 0:00:24]} 47. Rxf6 {[%emt 0:01:10]} Kxf6 {[%emt 0:00:13]} 48. Rf8+ {[%emt 0:00:24]} Kg7 {[%emt 0:00:22]} 49. Re8 {[%emt 0:00:09]} Kf7 {[%emt 0:00:08]} 50. Rh8 {[%emt 0:00:07]} Rxa5 {[%emt 0:01:19]} 51. Rxh4 {[%emt 0:00:03]} g5 {[%emt 0:01:11]} 52. Rh7+ {[%emt 0:00:22]} Kf6 {[%emt 0:00:13]} 53. Rh6+ {[%emt 0:00:11]} Ke5 {[%emt 0:00:12]} 54. Rg6 {[%emt 0:00:25]} Kd4 {[%emt 0:00:59]} 55. Re6 {[%emt 0:00:09]} Nd5 {[%emt 0:01:08]} 56. Re4+ {[%emt 0:01:40]} Kc3 {[%emt 0:00:47]} 57. Re5 {[%emt 0:00:22]} Rb5+ {[%emt 0:00:28]} 58. Kc1 {[%emt 0:00:13]} Ne3 {[%emt 0:00:31]} 59. Rxe7 {[%emt 0:00:11]} b6 {[%emt 0:00:22]} 60. Rd7 {[%emt 0:00:42]} Nxc2 {[%emt 0:00:29]} 61. Be2 {[%emt 0:00:23]} Re5 {[%emt 0:00:45]} 62. Rd3+ {[%emt 0:00:43]} Kb4 {[%emt 0:00:11]} 63. Rd2 {[%emt 0:00:38]} Na3 {[%emt 0:00:29]} 64. Bxa6 {[%emt 0:00:53]} b5 {[%emt 0:00:39]} 65. Rf2 {[%emt 0:00:20]} Re3 {[%emt 0:00:20]} 66. Kd1 {[%emt 0:01:35]} Re4 {[%emt 0:01:16]} 67. Rf3 {[%emt 0:00:24]} Nc4 {[%emt 0:00:12]} 68. g3 {[%emt 0:01:29]} Ne3+ {[%emt 0:00:17]} 69. Kc1 {[%emt 0:00:35]} fxg3 {[%emt 0:01:40]} 70. Rxg3 {[%emt 0:00:07]} Rc4+ {[%emt 0:00:04]} 71. Kb1 {[%emt 0:00:40]} g4 {[%emt 0:00:29]} 72. Rxe3 {[%emt 0:00:48]} gxh3 {[%emt 0:00:01]} 73. Rxh3 {[%emt 0:00:09]} Rc5 {[%emt 0:00:40]} 74. Bb7 {[%emt 0:00:58]} Rc3 {[%emt 0:00:11]} 75. Rh4+ {[%emt 0:00:09]} Rc4 {[%emt 0:00:06]} 76. Rh2 {[%emt 0:00:07]} Rc7 {[%emt 0:00:12]} 77. Be4 {[%emt 0:00:18]} Rc4 {[%emt 0:00:19]} 78. Bc2 {[%emt 0:00:09]} Rf4 {[%emt 0:00:22]} 79. Kb2 {[%emt 0:00:05]} Kc5 {[%emt 0:00:34]} 80. Bd3 {[%emt 0:00:41]} Rd4 {[%emt 0:00:25]} 81. Kc3 {[%emt 0:00:31]} b4+ {[%emt 0:00:28]} 82. Kc2 {[%emt 0:00:03]} Rd5 {[%emt 0:00:32]} 83. Rh4 {[%emt 0:00:26]} Rd4 {[%emt 0:00:08]} 84. Rh8 {[%emt 0:00:18]} Rd6 {[%emt 0:00:30]} 85. Ra8 {[%emt 0:00:31]} Rb6 {[%emt 0:01:07]} 86. Kb3 {[%emt 0:00:22]} Kd4 {[%emt 0:00:15]} 87. Bc4 {[%emt 0:00:22]} Kc5 {[%emt 0:00:50]} 88. Ra5+ {[%emt 0:00:12]} Kc6 {[%emt 0:00:15]} 89. Rh5 {[%emt 0:00:01]} Kd6 {[%emt 0:00:25]} 90. Bb5 {[%emt 0:00:12]} Rb8 {[%emt 0:00:18]} 91. Kxb4 {[%emt 0:00:13]} Rb7 {[%emt 0:00:11]} 92. Kc4 {[%emt 0:00:17]} Rg7 {[%emt 0:00:10]} 93. Rh6+ {[%emt 0:00:14]} Ke5 {[%emt 0:00:09]} 94. Kc5 {[%emt 0:00:17]} Rg1 {[%emt 0:00:12]} 95. Rh8 {[%emt 0:00:13]} Rc1+ {[%emt 0:00:05]} 96. Bc4 {[%emt 0:00:07]} Rd1 {[%emt 0:00:26]} 97. Re8+ {[%emt 0:00:08]} Kf5 {[%emt 0:00:16]} 98. Bd5 {[%emt 0:00:25]} Kf4 {[%emt 0:00:18]} 99. Kd6 {[%emt 0:00:40]} Ra1 {[%emt 0:00:39]} 100. Rf8+ {[%emt 0:00:06]} Ke3 {[%emt 0:00:09]} 101. Ke5 {[%emt 0:00:04]} Ra4 {[%emt 0:00:17]} 102. Rh8 {[%emt 0:00:30]} Rg4 {[%emt 0:00:51]} 103. Rh3+ {[%emt 0:00:22]} Kf2 {[%emt 0:00:21]} 104. Be4 {[%emt 0:00:22]} Rg8 {[%emt 0:00:17]} 105. Kf4 {[%emt 0:00:29]} Rf8+ {[%emt 0:00:19]} 106. Bf5 {[%emt 0:00:05]} Rg8 {[%emt 0:00:37]} 107. Ra3 {[%emt 0:00:22]} Re8 {[%emt 0:00:03]} 108. Rb3 {[%emt 0:02:24]} Re7 {[%emt 0:00:11]} 109. Rc3 {[%emt 0:01:09]} Re8 {[%emt 0:00:12]} 110. Rc7 {[%emt 0:00:07]} Re1 {[%emt 0:00:12]} 111. Bg4 {[%emt 0:00:36]} Rf1 {[%emt 0:00:54]} 112. Rc2+ {[%emt 0:00:21]} Kg1+ {[%emt 0:00:30]} 113. Kg3 {[%emt 0:01:06]} Ra1 {[%emt 0:00:42]} 114. Bf3 {[%emt 0:00:19]} 1-0

[Event "Marshall CC Premier 04-2025"]
[Site "New York"]
[Date "2025.04.06"]
[Round "4.3"]
[White "Chen, Derek Li"]
[Black "Hebbar, Eshaan"]
[Result "0-1"]
[Annotator "RC"]
[ECO "B08"]
[WhiteElo "1980"]
[BlackElo "2175"]
[PlyCount "88"]
[EventDate "2025.01.03"]
[EventType "swiss"]
[EventCountry "USA"]
[SourceTitle "playchess.com"]
[Source "ChessBase"]
[SourceQuality "1"]
[TimeControl "5400+30"]

1. e4 {[%emt 0:00:01]} d6 {[%emt 0:00:35]} 2. d4 {[%emt 0:00:07]} Nf6 {[%emt 0:00:05]} 3. Nc3 {[%emt 0:00:02]} g6 {[%emt 0:00:04]} 4. Be3 {[%emt 0:00:07]} c6 {[%emt 1:31:46]} 5. h3 {[%emt 0:01:50]} Bg7 {[%emt 0:00:00]} 6. Qd2 {[%emt 0:01:54]} Nbd7 {[%emt 0:00:00]} 7. Nf3 {[%emt 0:02:20]} O-O {[%emt 0:00:00]} 8. Bh6 {[%emt 0:00:41]} e5 {[%emt 0:00:00]} 9. O-O-O {[%emt 0:03:29]} Qe7 {[%emt 0:00:00]} 10. Bxg7 {[%emt 0:11:10]} Kxg7 {[%emt 0:00:00]} 11. g4 {[%emt 0:02:57]} Re8 {[%emt 0:00:00]} 12. dxe5 {[%emt 0:04:07]} dxe5 {[%emt 0:00:00]} 13. Be2 {[%emt 0:05:48]} Nc5 {[%emt 0:00:00]} 14. Qe3 {[%emt 0:00:17]} b5 {[%emt 0:00:00]} 15. Nd2 {[%emt 0:01:20]} b4 {[%emt 0:00:00]} 16. Ncb1 {[%emt 0:00:05]} Be6 {[%emt 0:00:00]} 17. g5 {[%emt 0:00:15]} Nh5 {[%emt 0:00:00]} 18. Bxh5 {[%emt 0:00:11]} gxh5 {[%emt 0:00:00]} 19. b3 {[%emt 0:11:57]} a5 {[%emt 0:00:00]} 20. Nf1 {[%emt 0:02:03]} h4 {[%emt 0:00:00]} 21. Nh2 {[%emt 0:00:39]} a4 {[%emt 0:00:00]} 22. Ng4 {[%emt 0:00:02]} axb3 {[%emt 0:00:00]} 23. axb3 {[%emt 0:00:01]} Bxg4 {[%emt 0:00:00]} 24. hxg4 {[%emt 0:00:10]} Ne6 {[%emt 0:00:00]} 25. Rxh4 {[%emt 0:01:08]} Qxg5 {[%emt 0:00:00]} 26. Rh5 {[%emt 0:03:38]} Qxe3+ {[%emt 0:00:00]} 27. fxe3 {[%emt 0:00:07]} Nc5 {[%emt 0:00:00]} 28. Rdh1 {[%emt 0:00:44]} Nxe4 {[%emt 0:00:00]} 29. Rxh7+ {[%emt 0:00:25]} Kf8 {[%emt 0:00:00]} 30. Rf1 {[%emt 0:01:34]} Nd6 {[%emt 0:00:00]} 31. Rf6 {[%emt 0:01:17]} Ke7 {[%emt 0:00:00]} 32. Rhh6 {[%emt 0:00:53]} Red8 {[%emt 0:00:00]} 33. Kb2 {[%emt 0:00:48]} c5 {[%emt 0:00:00]} 34. g5 {[%emt 0:01:05]} Ra6 {[%emt 0:00:00]} 35. Rh7 {[%emt 0:03:12]} Rda8 {[%emt 0:00:00]} 36. Rf1 {[%emt 0:02:29]} Ra2+ {[%emt 0:00:00]} 37. Kc1 {[%emt 0:00:03]} Rg8 {[%emt 0:00:00]} 38. Rg1 {[%emt 0:00:57]} Rg6 {[%emt 0:00:00]} 39. Rh6 {[%emt 0:02:08]} c4 {[%emt 0:00:00]} 40. Rxg6 {[%emt 0:02:54]} fxg6 {[%emt 0:00:00]} 41. Rg4 {[%emt 0:00:28]} Ke6 {[%emt 0:00:00]} 42. bxc4 {[%emt 0:01:55]} Kf5 {[%emt 0:00:00]} 43. Rg3 {[%emt 0:00:40]} Nxc4 {[%emt 0:00:00]} 44. c3 {[%emt 0:00:58]} b3 {[%emt 0:20:00]} 0-1

[Event "Marshall CC Premier 04-2025"]
[Site "New York"]
[Date "2025.04.06"]
[Round "4.4"]
[White "Schaefer, Sasha Milo"]
[Black "Knowles, Chase"]
[Result "1/2-1/2"]
[Annotator "RC"]
[ECO "C11"]
[WhiteElo "2050"]
[BlackElo "1968"]
[PlyCount "117"]
[EventDate "2025.01.03"]
[EventType "swiss"]
[EventCountry "USA"]
[SourceTitle "playchess.com"]
[Source "ChessBase"]
[SourceQuality "1"]
[TimeControl "5400+30"]

1. e4 {[%emt 0:00:01]} e6 {[%emt 0:00:05]} 2. d4 {[%emt 0:00:03]} d5 {[%emt 0:00:11]} 3. Nc3 {[%emt 0:00:03]} Nf6 {[%emt 0:00:05]} 4. e5 {[%emt 0:00:02]} Nfd7 {[%emt 0:00:06]} 5. f4 {[%emt 0:00:05]} c5 {[%emt 0:00:42]} 6. Nf3 {[%emt 0:00:03]} Nc6 {[%emt 0:00:16]} 7. Be3 {[%emt 0:00:05]} cxd4 {[%emt 0:02:39]} 8. Nxd4 {[%emt 0:00:08]} Qb6 {[%emt 0:00:32]} 9. Qd2 {[%emt 0:24:03]} Qxb2 {[%emt 0:00:39]} 10. Rb1 {[%emt 0:00:17]} Qa3 {[%emt 0:00:17]} 11. Rb3 {[%emt 0:13:23]} Qa5 {[%emt 0:08:49]} 12. Bb5 {[%emt 0:09:25]} Qc7 {[%emt 0:04:26]} 13. O-O {[%emt 0:05:48]} a6 {[%emt 0:02:48]} 14. Be2 {[%emt 0:04:05]} Nxd4 {[%emt 0:01:42]} 15. Bxd4 {[%emt 0:00:06]} Bc5 {[%emt 0:00:48]} 16. Na4 {[%emt 0:01:22]} Bxd4+ {[%emt 0:01:36]} 17. Qxd4 {[%emt 0:00:05]} b5 {[%emt 0:02:40]} 18. Rc3 {[%emt 0:02:23]} Qa5 {[%emt 0:01:06]} 19. Nc5 {[%emt 0:01:24]} b4 {[%emt 0:06:14]} 20. Nb3 {[%emt 0:00:57]} Qb6 {[%emt 0:01:38]} 21. Qxb6 {[%emt 0:00:36]} Nxb6 {[%emt 0:00:17]} 22. Rc6 {[%emt 0:02:09]} Na4 {[%emt 0:02:24]} 23. a3 {[%emt 0:01:17]} bxa3 {[%emt 0:07:07]} 24. Ra1 {[%emt 0:00:13]} Bd7 {[%emt 0:04:18]} 25. Rxa6 {[%emt 0:00:37]} Rxa6 {[%emt 0:03:43]} 26. Bxa6 {[%emt 0:00:06]} O-O {[%emt 0:00:22]} 27. Rxa3 {[%emt 0:00:59]} g6 {[%emt 0:00:35]} 28. Nd4 {[%emt 0:02:09]} Rb8 {[%emt 0:02:51]} 29. Rb3 {[%emt 0:01:01]} Rb6 {[%emt 0:01:39]} 30. Rxb6 {[%emt 0:00:45]} Nxb6 {[%emt 0:00:05]} 31. Kf2 {[%emt 0:00:44]} Kf8 {[%emt 0:02:47]} 32. Ke3 {[%emt 0:00:44]} Ke7 {[%emt 0:00:52]} 33. Kd2 {[%emt 0:04:03]} Na4 {[%emt 0:00:31]} 34. Nb3 {[%emt 0:00:36]} Kd8 {[%emt 0:01:01]} 35. Kd3 {[%emt 0:00:37]} Kc7 {[%emt 0:00:25]} 36. Kd4 {[%emt 0:00:34]} Kb6 {[%emt 0:01:30]} 37. Bd3 {[%emt 0:00:09]} Bb5 {[%emt 0:01:04]} 38. g4 {[%emt 0:02:11]} Bxd3 {[%emt 0:00:56]} 39. cxd3 {[%emt 0:00:24]} Kc6 {[%emt 0:01:18]} 40. Nd2 {[%emt 0:05:56]} Nb2 {[%emt 0:03:07]} 41. Nf3 {[%emt 0:02:42]} h6 {[%emt 0:01:38]} 42. Ke3 {[%emt 0:01:08]} Kd7 {[%emt 0:03:07]} 43. Kd2 {[%emt 0:01:24]} Ke7 {[%emt 0:00:55]} 44. Nd4 {[%emt 0:00:47]} f6 {[%emt 0:03:23]} 45. Nc6+ {[%emt 0:02:03]} Kf7 {[%emt 0:00:42]} 46. h4 {[%emt 0:00:18]} f5 {[%emt 0:03:28]} 47. g5 {[%emt 0:00:19]} h5 {[%emt 0:00:32]} 48. Nd8+ {[%emt 0:00:31]} Ke7 {[%emt 0:00:17]} 49. Nb7 {[%emt 0:00:18]} Na4 {[%emt 0:00:32]} 50. Kc2 {[%emt 0:00:30]} Nb6 {[%emt 0:00:55]} 51. Kc3 {[%emt 0:01:05]} d4+ {[%emt 0:00:30]} 52. Kxd4 {[%emt 0:01:32]} Nd5 {[%emt 0:00:02]} 53. Nc5 {[%emt 0:00:51]} Nxf4 {[%emt 0:08:17]} 54. Ke3 {[%emt 0:00:05]} Nd5+ {[%emt 0:00:18]} 55. Kd4 {[%emt 0:00:39]} Nb4 {[%emt 0:01:32]} 56. Kc3 {[%emt 0:00:41]} Nd5+ {[%emt 0:01:04]} 57. Kd4 {[%emt 0:00:06]} Nb6 {[%emt 0:03:34]} 58. Nb7 {[%emt 0:01:08]} Nd5 {[%emt 0:02:01]} 59. Nd6 {[%emt 0:14:15]} 1/2-1/2

[Event "Marshall CC Premier 04-2025"]
[Site "New York"]
[Date "2025.04.06"]
[Round "4.5"]
[White "Belenky, Nicholas"]
[Black "Saxena, Vihaan"]
[Result "1/2-1/2"]
[Annotator "RC"]
[ECO "C95"]
[WhiteElo "1958"]
[BlackElo "1913"]
[PlyCount "146"]
[EventDate "2025.01.03"]
[EventType "swiss"]
[EventCountry "USA"]
[SourceTitle "playchess.com"]
[Source "ChessBase"]
[SourceQuality "1"]
[TimeControl "5400+30"]

1. e4 {[%emt 0:00:02]} e5 {[%emt 0:00:22]} 2. Nf3 {[%emt 0:00:07]} Nc6 {[%emt 0:00:07]} 3. Bb5 {[%emt 0:00:07]} a6 {[%emt 0:00:33]} 4. Ba4 {[%emt 0:00:08]} Nf6 {[%emt 0:00:15]} 5. O-O {[%emt 0:00:08]} b5 {[%emt 0:00:46]} 6. Bb3 {[%emt 0:00:06]} Be7 {[%emt 0:00:45]} 7. Re1 {[%emt 0:00:17]} d6 {[%emt 0:00:29]} 8. c3 {[%emt 0:00:17]} O-O {[%emt 0:01:07]} 9. h3 {[%emt 0:00:11]} Nb8 {[%emt 0:00:39]} 10. d4 {[%emt 0:00:23]} Nbd7 {[%emt 0:00:06]} 11. Nbd2 {[%emt 0:00:14]} Bb7 {[%emt 0:00:18]} 12. Bc2 {[%emt 0:00:29]} Re8 {[%emt 0:01:40]} 13. Nf1 {[%emt 0:00:33]} Bf8 {[%emt 0:00:10]} 14. Ng3 {[%emt 0:00:27]} g6 {[%emt 0:00:20]} 15. Bg5 {[%emt 0:00:48]} h6 {[%emt 0:00:26]} 16. Bd2 {[%emt 0:01:12]} Bg7 {[%emt 0:00:14]} 17. b3 {[%emt 0:04:05]} c5 {[%emt 0:05:52]} 18. d5 {[%emt 0:00:28]} Qc7 {[%emt 0:03:02]} 19. a4 {[%emt 0:03:50]} Rec8 {[%emt 0:08:05]} 20. Qe2 {[%emt 0:07:27]} b4 {[%emt 0:03:50]} 21. a5 {[%emt 0:06:28]} bxc3 {[%emt 0:01:58]} 22. Bxc3 {[%emt 0:01:09]} Rcb8 {[%emt 0:04:08]} 23. Nd2 {[%emt 0:01:47]} Bc8 {[%emt 0:01:43]} 24. Nc4 {[%emt 0:01:34]} Rb7 {[%emt 0:02:13]} 25. Rf1 {[%emt 0:03:32]} Ne8 {[%emt 0:02:21]} 26. Qd2 {[%emt 0:04:30]} Kh7 {[%emt 0:02:05]} 27. Ne2 {[%emt 0:04:25]} Rab8 {[%emt 0:10:38]} 28. f3 {[%emt 0:04:44]} Qd8 {[%emt 0:07:23]} 29. Rf2 {[%emt 0:05:16]} Qg5 {[%emt 0:03:14]} 30. Qd3 {[%emt 0:04:28]} Qe7 {[%emt 0:03:15]} 31. Raf1 {[%emt 0:01:15]} Nc7 {[%emt 0:03:17]} 32. f4 {[%emt 0:11:09]} Nb5 {[%emt 0:11:12]} 33. Bd2 {[%emt 0:07:09]} f6 {[%emt 0:05:40]} 34. Qg3 {[%emt 0:02:11]} Qe8 {[%emt 0:03:57]} 35. Qh4 {[%emt 0:03:04]} exf4 {[%emt 0:02:41]} 36. Qxf4 {[%emt 0:00:34]} Ne5 {[%emt 0:00:32]} 37. Qe3 {[%emt 0:06:19]} Rf7 {[%emt 0:02:04]} 38. Nb6 {[%emt 0:03:42]} Qe7 {[%emt 0:00:48]} 39. b4 {[%emt 0:00:35]} Qf8 {[%emt 0:01:52]} 40. Ba4 {[%emt 0:04:41]} Rc7 {[%emt 0:01:45]} 41. Rc1 {[%emt 0:00:52]} Bd7 {[%emt 0:00:52]} 42. Nf4 {[%emt 0:02:20]} c4 {[%emt 0:01:54]} 43. Nxd7 {[%emt 0:00:37]} Rxd7 {[%emt 0:00:16]} 44. Ne6 {[%emt 0:00:06]} Qe7 {[%emt 0:00:08]} 45. Rcf1 {[%emt 0:00:16]} g5 {[%emt 0:00:40]} 46. Bc3 {[%emt 0:01:21]} Bh8 {[%emt 0:01:40]} 47. Bxe5 {[%emt 0:00:29]} dxe5 {[%emt 0:00:22]} 48. Nc5 {[%emt 0:00:15]} Rd6 {[%emt 0:00:18]} 49. Rc1 {[%emt 0:00:31]} Nd4 {[%emt 0:01:17]} 50. Rxc4 {[%emt 0:00:10]} Bg7 {[%emt 0:00:33]} 51. Nd3 {[%emt 0:01:10]} Qd8 {[%emt 0:01:24]} 52. Qc1 {[%emt 0:00:22]} f5 {[%emt 0:00:46]} 53. exf5 {[%emt 0:02:22]} Rxd5 {[%emt 0:00:04]} 54. Rc7 {[%emt 0:00:58]} Qf6 {[%emt 0:01:20]} 55. Qc4 {[%emt 0:00:16]} e4 {[%emt 0:01:22]} 56. Qxd5 {[%emt 0:00:47]} exd3 {[%emt 0:00:05]} 57. Rf7 {[%emt 0:00:56]} Ne2+ {[%emt 0:01:28]} 58. Rxe2 {[%emt 0:02:16]} dxe2 {[%emt 0:00:05]} 59. Kf2 {[%emt 0:00:54]} e1=Q+ {[%emt 0:01:24]} 60. Kxe1 {[%emt 0:00:06]} Qc3+ {[%emt 0:01:07]} 61. Qd2 {[%emt 0:01:33]} Qa1+ {[%emt 0:00:36]} 62. Qd1 {[%emt 0:01:36]} Qc3+ {[%emt 0:00:19]} 63. Qd2 {[%emt 0:00:47]} Qe5+ {[%emt 0:00:56]} 64. Kf2 {[%emt 0:00:30]} Rf8 {[%emt 0:00:37]} 65. Rxf8 {[%emt 0:00:28]} Bxf8 {[%emt 0:00:03]} 66. Bc2 {[%emt 0:00:46]} Qf6 {[%emt 0:00:33]} 67. Be4 {[%emt 0:00:32]} Qe7 {[%emt 0:00:35]} 68. Qd5 {[%emt 0:00:31]} Qxb4 {[%emt 0:00:45]} 69. f6+ {[%emt 0:00:16]} Kh8 {[%emt 0:00:04]} 70. f7 {[%emt 0:00:22]} Qc5+ {[%emt 0:00:46]} 71. Kf3 {[%emt 0:00:34]} Qxd5 {[%emt 0:00:15]} 72. Bxd5 {[%emt 0:00:06]} Kg7 {[%emt 0:00:02]} 73. Kg4 {[%emt 0:00:31]} Bb4 {[%emt 0:00:11]} 1/2-1/2

[Event "Marshall CC Premier 04-2025"]
[Site "New York"]
[Date "2025.04.06"]
[Round "4.6"]
[White "Marsh, James J"]
[Black "Shankar, Pranav"]
[Result "1/2-1/2"]
[Annotator "RC"]
[ECO "D38"]
[WhiteElo "2058"]
[BlackElo "1966"]
[PlyCount "116"]
[EventDate "2025.01.03"]
[EventType "swiss"]
[EventCountry "USA"]
[SourceTitle "playchess.com"]
[Source "ChessBase"]
[SourceQuality "1"]
[TimeControl "5400+30"]

1. d4 {[%emt 0:00:01]} Nf6 {[%emt 0:02:33]} 2. c4 {[%emt 0:00:07]} e6 {[%emt 0:00:09]} 3. Nf3 {[%emt 0:00:09]} d5 {[%emt 0:00:32]} 4. Nc3 {[%emt 0:00:10]} Bb4 {[%emt 0:00:03]} 5. Qa4+ {[%emt 0:03:06]} Nc6 {[%emt 0:00:30]} 6. a3 {[%emt 0:00:08]} Bxc3+ {[%emt 0:04:10]} 7. bxc3 {[%emt 0:00:26]} Bd7 {[%emt 0:00:19]} 8. cxd5 {[%emt 0:01:04]} exd5 {[%emt 0:00:56]} 9. Bg5 {[%emt 0:00:12]} O-O {[%emt 0:02:25]} 10. e3 {[%emt 0:04:40]} h6 {[%emt 0:04:03]} 11. Bh4 {[%emt 0:00:27]} Ne5 {[%emt 0:09:12]} 12. Qb3 {[%emt 0:06:05]} Nxf3+ {[%emt 0:00:33]} 13. gxf3 {[%emt 0:00:05]} c5 {[%emt 0:13:53]} 14. Be2 {[%emt 0:03:58]} Qb6 {[%emt 0:10:30]} 15. Rb1 {[%emt 0:07:10]} cxd4 {[%emt 0:11:05]} 16. cxd4 {[%emt 0:01:18]} Rfc8 {[%emt 0:04:26]} 17. O-O {[%emt 0:06:29]} Qxb3 {[%emt 0:03:11]} 18. Rxb3 {[%emt 0:00:20]} g5 {[%emt 0:00:13]} 19. Bg3 {[%emt 0:00:46]} b6 {[%emt 0:00:51]} 20. Ba6 {[%emt 0:11:49]} Rc2 {[%emt 0:01:08]} 21. Bb7 {[%emt 0:06:12]} Re8 {[%emt 0:00:09]} 22. Be5 {[%emt 0:02:46]} Bc6 {[%emt 0:00:54]} 23. Ba6 {[%emt 0:03:16]} Nd7 {[%emt 0:01:07]} 24. Bd3 {[%emt 0:00:49]} Nxe5 {[%emt 0:01:50]} 25. Bxc2 {[%emt 0:10:14]} Nxf3+ {[%emt 0:00:17]} 26. Kg2 {[%emt 0:00:05]} Nd2 {[%emt 0:00:15]} 27. Rc3 {[%emt 0:00:53]} Nxf1 {[%emt 0:00:36]} 28. Rxc6 {[%emt 0:00:29]} Nd2 {[%emt 0:00:38]} 29. Rc7 {[%emt 0:09:25]} a5 {[%emt 0:02:15]} 30. a4 {[%emt 0:03:09]} Nc4 {[%emt 0:02:25]} 31. Bb3 {[%emt 0:01:05]} Rb8 {[%emt 0:01:10]} 32. Rd7 {[%emt 0:02:54]} Rc8 {[%emt 0:04:37]} 33. Rxd5 {[%emt 0:00:16]} Nd2 {[%emt 0:00:03]} 34. Ba2 {[%emt 0:04:07]} Kf8 {[%emt 0:06:12]} 35. Rd7 {[%emt 0:00:49]} Nc4 {[%emt 0:00:06]} 36. Kf3 {[%emt 0:01:50]} f5 {[%emt 0:00:11]} 37. Rb7 {[%emt 0:03:48]} Nd2+ {[%emt 0:03:22]} 38. Kg2 {[%emt 0:08:53]} Nc4 {[%emt 0:02:18]} 39. Bxc4 {[%emt 0:00:00]} Rxc4 {[%emt 0:00:03]} 40. Rxb6 {[%emt 0:00:00]} Rxa4 {[%emt 0:00:13]} 41. Rxh6 {[%emt 0:00:00]} Kf7 {[%emt 0:01:40]} 42. Ra6 {[%emt 0:00:00]} Ra1 {[%emt 0:02:29]} 43. h3 {[%emt 0:00:00]} a4 {[%emt 0:01:02]} 44. Kg3 {[%emt 0:00:00]} a3 {[%emt 0:02:04]} 45. Kg2 {[%emt 0:00:00]} Ra2 {[%emt 0:01:08]} 46. Kf3 {[%emt 0:00:00]} Ra1 {[%emt 0:00:17]} 47. Kg3 {[%emt 0:00:28]} a2 {[%emt 0:02:38]} 48. Kg2 {[%emt 0:00:51]} Ke7 {[%emt 0:01:02]} 49. Kh2 {[%emt 0:00:48]} Kf7 {[%emt 0:00:20]} 50. Kg2 {[%emt 0:00:51]} Ke7 {[%emt 0:00:49]} 51. f3 {[%emt 0:02:00]} Re1 {[%emt 0:02:02]} 52. Rxa2 {[%emt 0:00:03]} Rxe3 {[%emt 0:00:07]} 53. Ra7+ {[%emt 0:01:27]} Ke6 {[%emt 0:00:32]} 54. d5+ {[%emt 0:00:49]} Kxd5 {[%emt 0:00:52]} 55. Rg7 {[%emt 0:00:03]} Ke5 {[%emt 0:00:54]} 56. Rxg5 {[%emt 0:00:10]} Kf4 {[%emt 0:00:20]} 57. Rh5 {[%emt 0:00:31]} Re2+ {[%emt 0:00:04]} 58. Kf1 {[%emt 0:00:10]} Ra2 {[%emt 0:00:21]} 1/2-1/2